fUSD/lending_fUSD_20250407
["ID","MTS","AMOUNT","RATE_DAILY","PERIOD"]
[357342318,1744008705091,-500.0,0.00299999,120]
[357342319,1744008705102,-500.0,0.00299999,120]
[357342320,1744008705112,-500.0,0.00299999,120]
[357342321,1744008705123,-500.0,0.00299999,120]
[357342322,1744008705134,-312.0,0.00299999,120]
[357342323,1744008705144,-500.0,0.00299999,120]
[357342324,1744008705154,-500.0,0.00299999,120]
[357342325,1744008705165,-500.0,0.00299999,120]
[357342326,1744008705174,-500.0,0.00299999,120]
[357342327,1744008705184,-500.0,0.00299999,120]
[357342328,1744008705194,-500.0,0.00299999,120]
[357342329,1744008705203,-500.0,0.00299999,120]
[357342330,1744008705213,-500.0,0.00299999,120]
[357342331,1744008705223,-529.47,0.00299999,120]
[357342332,1744008705232,-529.47,0.00299999,120]
[357342333,1744008705242,-533.48,0.00299999,120]
[357342334,1744008705252,-533.48,0.00299999,120]
[357342335,1744008705264,-573.52,0.00299999,120]
[357342336,1744008705274,-573.52,0.00299999,120]
[357342337,1744008705284,-500.0,0.00299999,120]
[357342338,1744008705293,-220.15259551,0.00299999,120]
[357342339,1744008705304,-500.0,0.00299999,120]
[357342340,1744008705314,-500.0,0.00299999,120]
[357342341,1744008705321,-500.0,0.00299999,120]
[357342342,1744008705331,-500.0,0.00299999,120]
[357342343,1744008705340,-530.24463457,0.00299999,120]
[357342344,1744008705351,-500.0,0.00299999,120]
[357342345,1744008705360,-500.0,0.00299999,120]
[357342346,1744008705369,-569.45,0.00299999,120]
[357342347,1744008705379,-500.0,0.00299999,120]
[357342348,1744008705389,-500.0,0.00299999,120]
[357342349,1744008705399,-500.0,0.00299999,120]
[357342350,1744008705408,-500.0,0.00299999,120]
[357342351,1744008705419,-565.2,0.00299999,120]
[357342352,1744008705428,-565.2,0.00299999,120]
[357342353,1744008705438,-500.0,0.00299999,120]
[357342354,1744008705448,-500.0,0.00299999,120]
[357342355,1744008705459,-500.0,0.00299999,120]
[357342356,1744008705469,-500.0,0.00299999,120]
[357342357,1744008705478,-1000.0,0.00299999,120]
[357342358,1744008705490,-1000.0,0.00299999,120]
[357342359,1744008705500,-790.21,0.00299999,120]
[357342360,1744008705513,-790.21,0.00299999,120]
[357342361,1744008705522,-254.87,0.00299999,7]
[357342362,1744008705532,-254.87,0.00299999,7]
[357342363,1744008705542,-81430.25,0.00299999,7]
[357342364,1744008705551,-81430.25,0.00299999,7]
[357342365,1744008705560,-640.25,0.00299999,120]
[357342366,1744008705570,-640.25,0.00299999,120]
[357342367,1744008705579,-500.0,0.00299999,120]
[357342368,1744008705589,-500.0,0.00299999,120]
[357342369,1744008705598,-500.0,0.00299999,100]
[357342370,1744008705608,-500.0,0.00299999,100]
[357342371,1744008705618,-500.0,0.00299999,120]
[357342372,1744008705627,-444.57318639,0.00299999,120]
[357342373,1744008705637,-500.0,0.00299999,120]
[357342374,1744008705646,-500.0,0.00299999,120]
[357342375,1744008705656,-500.0,0.00299999,120]
[357342376,1744008705666,-500.0,0.00299999,120]
[357342377,1744008705675,-500.0,0.00299999,120]
[357342378,1744008705684,-233.93261161,0.00299999,120]
[357342379,1744008705694,-1000.85,0.00299999,120]
[357342380,1744008705704,-1000.85,0.00299999,120]
[357342381,1744008705713,-2670.11,0.00299999,120]
[357342382,1744008705723,-2670.11,0.00299999,120]
[357342383,1744008705733,-500.0,0.00299999,120]
[357342384,1744008705743,-500.0,0.00299999,120]
[357342385,1744008705752,-489.90933404,0.00299999,120]
[357342386,1744008705765,-559.79,0.00299999,120]
[357342387,1744008705775,-559.79,0.00299999,120]
[357342388,1744008705785,-323.3244237,0.00299999,120]
[357342389,1744008705795,-521.62,0.00299999,120]
[357342390,1744008705804,-521.62,0.00299999,120]
[357342391,1744008705814,-592.49,0.00299999,120]
[357342392,1744008705823,-592.49,0.00299999,120]
[357342393,1744008705833,-500.0,0.00299999,5]
[357342394,1744008705843,-228.9854729,0.00299999,5]
[357342395,1744008705853,-567.96,0.00299999,120]
[357342396,1744008705863,-567.96,0.00299999,120]
[357342397,1744008705874,-500.0,0.00299999,120]
[357342398,1744008705884,-500.0,0.00299999,120]
[357342399,1744008705894,-549.44,0.00299999,120]
[357342400,1744008705904,-549.44,0.00299999,120]
[357342401,1744008705914,-618.29,0.00299999,120]
[357342402,1744008705923,-618.29,0.00299999,120]
[357342403,1744008705932,-500.0,0.00299999,120]
[357342404,1744008705942,-500.0,0.00299999,120]
[357342405,1744008705952,-500.0,0.00299999,120]
[357342406,1744008705962,-203.59369288,0.00299999,120]
[357342407,1744008705972,-575.23,0.00299999,120]
[357342408,1744008705982,-575.23,0.00299999,120]
[357342409,1744008705992,-562.96,0.00299999,120]
[357342410,1744008706002,-562.96,0.00299999,120]
[357342411,1744008706014,-6068.57,0.00299999,120]
[357342412,1744008706024,-6068.57,0.00299999,120]
[357342413,1744008706034,-500.0,0.00299999,120]
[357342414,1744008706043,-500.0,0.00299999,120]
[357342415,1744008706053,-505.89,0.00299999,120]
[357342416,1744008706062,-505.89,0.00299999,120]
[357342417,1744008706073,-715.44,0.00299999,120]
[357342418,1744008706087,-715.44,0.00299999,120]
[357342419,1744008706096,-500.0,0.00299999,120]
[357342420,1744008706106,-500.0,0.00299999,120]
[357342421,1744008706115,-500.0,0.00299999,120]
[357342422,1744008706125,-398.08,0.00299999,120]
[357342423,1744008706135,-500.0,0.00299999,120]
[357342424,1744008706145,-500.0,0.00299999,120]
[357342425,1744008706156,-500.0,0.00299999,120]
[357342426,1744008706165,-320.94897321,0.00299999,120]
[357342427,1744008706175,-500.0,0.00299999,120]
[357342428,1744008706184,-498.13943398,0.00299999,120]
[357342429,1744008706193,-500.0,0.00299999,120]
[357342430,1744008706202,-500.0,0.00299999,120]
[357342431,1744008706212,-500.0,0.00299999,120]
[357342432,1744008706222,-500.0,0.00299999,120]
[357342433,1744008706231,-659.21,0.00299999,120]
[357342434,1744008706240,-659.21,0.00299999,120]
[357342435,1744008706248,-500.0,0.00299999,120]
[357342436,1744008706258,-500.0,0.00299999,120]
[357342437,1744008706273,-515.25,0.00299999,120]
[357342438,1744008706283,-515.25,0.00299999,120]
[357342439,1744008706291,-500.0,0.00299999,120]
[357342440,1744008706301,-500.0,0.00299999,120]
[357342441,1744008706310,-500.0,0.00299999,120]
[357342442,1744008706320,-500.0,0.00299999,120]
[357342443,1744008706330,-500.0,0.00299999,120]
[357342444,1744008706339,-421.1895267,0.00299999,120]
[357342445,1744008706349,-1000.0,0.00299999,120]
[357342446,1744008706358,-1000.0,0.00299999,120]
[357342447,1744008706368,-537.59,0.00299999,120]
[357342448,1744008706377,-537.59,0.00299999,120]
[357342449,1744008706387,-400.00000099,0.003,120]
[357342450,1744008706397,-500000.0,0.003,120]
[357342451,1744008706408,-150.0,0.003,120]
[357342452,1744008706418,-200.0,0.003,120]
[357342453,1744008706428,-1000.0,0.003,2]
[357342454,1744008706438,-4773.0,0.003008,120]
[357342455,1744008706448,-150.0,0.00304574,120]
[357342456,1744008706458,-151.0,0.00312685,120]
[357342457,1744008706467,-151.0,0.00317973,120]
[357342458,1744008706478,-200.0,0.0032,120]
[357342459,1744008706488,-255.31963244,0.00320117,120]
[357342460,1744008706498,-25260.13338289,0.00320118,15]
[357342461,1744008706508,-500.0,0.00325404,120]
[357342462,1744008706523,-151.0,0.00339452,120]
[357342463,1744008706532,-200.0,0.0034,120]
[357342464,1744008706542,-150.0,0.0035,120]
[357342465,1744008706551,-500.0,0.00352614,120]
[357342466,1744008706560,-25260.13338289,0.00356469,15]
[357342467,1744008706571,-200.0,0.0036,120]
[357342468,1744008706580,-4773.0,0.00364,120]
[357342469,1744008706590,-151.0,0.00366219,120]
[357342470,1744008706601,-202.784159,0.00370722,120]
[357342471,1744008706610,-1824.04,0.00371,120]
[357342472,1744008706620,-2056.69,0.003721,87]
[357342473,1744008706630,-2056.69,0.003721,87]
[357342474,1744008706685,-2056.69,0.003721,87]
[357342475,1744008706695,-2056.69,0.003721,87]
[357342476,1744008706704,-2056.69,0.003721,87]
[357342477,1744008706713,-2056.69,0.003721,87]
[357342478,1744008706723,-2056.69,0.003721,87]
[357342479,1744008706732,-2056.69,0.003721,87]
[357342480,1744008706742,-2056.69,0.003721,87]
[357342481,1744008706751,-2056.69,0.003721,87]
[357342482,1744008706764,-2056.69,0.003721,87]
[357342483,1744008706774,-2056.69,0.003721,87]
[357342484,1744008706784,-2056.69,0.003721,87]
[357342485,1744008706793,-2056.69,0.003721,87]
[357342486,1744008706803,-2056.69,0.003721,87]
[357342487,1744008706812,-2056.69,0.003721,87]
[357342488,1744008706822,-2056.69,0.003721,87]
[357342489,1744008706831,-2056.69,0.003721,87]
[357342490,1744008706841,-2056.69,0.003721,87]
[357342491,1744008706850,-2056.69,0.003721,87]
[357342492,1744008706859,-2056.69,0.003721,87]
[357342493,1744008706869,-2056.69,0.003721,87]
[357342494,1744008706879,-2056.69,0.003721,87]
[357342495,1744008706888,-2056.69,0.003721,87]
[357342496,1744008706897,-500.0,0.00373582,120]
[357342497,1744008706907,-200.0,0.0038,120]
[357342498,1744008706917,-151.01695207,0.00384904,120]
[357342499,1744008706926,-159.992,0.00384904,120]
[357342500,1744008706935,-655.65265976,0.00384904,120]
[357342501,1744008706944,-655.65265976,0.00386466,120]
[357342502,1744008706954,-655.65265976,0.00388,120]
[357342503,1744008706964,-151.01695207,0.00389151,120]
[357342504,1744008706974,-159.992,0.00389151,120]
[357342505,1744008706984,-655.65265976,0.00389534,120]
[357342506,1744008706994,-1000.0,0.00390879,120]
[357342507,1744008707003,-1144.07029734,0.00390879,120]
[357342508,1744008707016,-655.65265976,0.00391096,120]
[357342509,1744008707025,-533.48,0.00392452,120]
[357342510,1744008707035,-500.0,0.00392452,120]
[357342511,1744008707045,-254.87,0.00392452,7]
[357342512,1744008707055,-559.79,0.00392452,120]
[357342513,1744008707064,-521.62,0.00392452,120]
[357342514,1744008707075,-549.44,0.00392452,120]
[357342515,1744008707084,-618.29,0.00392452,120]
[357342516,1744008707095,-562.96,0.00392452,120]
[357342517,1744008707105,-505.89,0.00392452,120]
[357342518,1744008707114,-715.44,0.00392452,120]
[357342519,1744008707123,-500.0,0.00392452,120]
[357342520,1744008707132,-515.25,0.00392452,120]
[357342521,1744008707143,-1000.0,0.00392452,120]
[357342522,1744008707152,-655.65265976,0.0039263,120]
[357342523,1744008707162,-25260.13338289,0.0039282,15]
[357342524,1744008707173,-151.0,0.00392986,120]
[357342525,1744008707182,-151.01695207,0.00393425,120]
[357342526,1744008707192,-159.992,0.00393425,120]
[357342527,1744008707201,-655.65265976,0.00394192,120]
[357342528,1744008707211,-655.65265976,0.00395726,120]
[357342529,1744008707220,-655.65265976,0.00397288,120]
[357342530,1744008707231,-151.01695207,0.00397671,120]
[357342531,1744008707240,-159.992,0.00397671,120]
[357342532,1744008707249,-655.65265976,0.00398822,120]
[357342533,1744008707259,-529.47,0.0039967,120]
[357342534,1744008707273,-81430.25,0.0039967,7]
[357342535,1744008707283,-2670.11,0.0039967,120]
[357342536,1744008707293,-500.0,0.0039967,120]
[357342537,1744008707302,-1000.0,0.00399997,120]
[357342538,1744008707311,-500.0,0.00399998,120]
[357342539,1744008707321,-500.0,0.00399998,120]
[357342540,1744008707330,-500.0,0.00399998,120]
[357342541,1744008707340,-500.0,0.00399998,120]
[357342542,1744008707350,-500.0,0.00399998,120]
[357342543,1744008707360,-1000.0,0.00399998,120]
[357342544,1744008707369,-790.21,0.00399998,120]
[357342545,1744008707379,-235.77430101,0.00399998,120]
[357342546,1744008707388,-500.0,0.00399998,100]
[357342547,1744008707398,-1000.85,0.00399998,120]
[357342548,1744008707408,-567.96,0.00399998,120]
[357342549,1744008707418,-150.9765397,0.00399998,120]
[357342550,1744008707428,-575.23,0.00399998,120]
[357342551,1744008707438,-500.0,0.00399998,120]
[357342552,1744008707447,-500.0,0.00399998,120]
[357342553,1744008707456,-500.0,0.00399998,120]
[357342554,1744008707466,-500.0,0.00399998,120]
[357342555,1744008707475,-1000.0,0.00399998,120]
[357342556,1744008707484,-537.59,0.00399998,120]
[357342557,1744008707495,-1000.0,0.00399998,120]
[357342558,1744008707504,-500.0,0.00399999,120]
[357342559,1744008707516,-500.0,0.00399999,120]
[357342560,1744008707525,-500.0,0.00399999,120]
[357342561,1744008707534,-500.0,0.00399999,120]
[357342562,1744008707544,-500.0,0.00399999,120]
[357342563,1744008707553,-500.0,0.00399999,120]
[357342564,1744008707563,-500.0,0.00399999,120]
[357342565,1744008707573,-500.0,0.00399999,120]
[357342566,1744008707583,-500.0,0.00399999,120]
[357342567,1744008707592,-593.39504615,0.00399999,120]
[357342568,1744008707602,-500.0,0.00399999,120]
[357342569,1744008707611,-459.64,0.00399999,120]
[357342570,1744008707621,-500.0,0.00399999,120]
[357342571,1744008707630,-500.0,0.00399999,120]
[357342572,1744008707640,-529.47,0.00399999,120]
[357342573,1744008707650,-529.47,0.00399999,120]
[357342574,1744008707659,-529.47,0.00399999,120]
[357342575,1744008707669,-529.47,0.00399999,120]
[357342576,1744008707678,-529.47,0.00399999,120]
[357342577,1744008707688,-529.67861899,0.00399999,120]
[357342578,1744008707698,-533.48,0.00399999,120]
[357342579,1744008707708,-533.48,0.00399999,120]
[357342580,1744008707718,-533.48,0.00399999,120]
[357342581,1744008707728,-533.48,0.00399999,120]
[357342582,1744008707737,-533.48,0.00399999,120]
[357342583,1744008707746,-533.56350955,0.00399999,120]
[357342584,1744008707756,-573.52,0.00399999,120]
[357342585,1744008707768,-573.52,0.00399999,120]
[357342586,1744008707778,-500.0,0.00399999,120]
[357342587,1744008707787,-500.0,0.00399999,120]
[357342588,1744008707797,-500.0,0.00399999,120]
[357342589,1744008707807,-500.0,0.00399999,120]
[357342590,1744008707816,-242.31241409,0.00399999,120]
[357342591,1744008707826,-500.0,0.00399999,120]
[357342592,1744008707834,-500.0,0.00399999,120]
[357342593,1744008707843,-500.0,0.00399999,120]
[357342594,1744008707853,-500.0,0.00399999,120]
[357342595,1744008707862,-165.4962085,0.00399999,120]
[357342596,1744008707873,-500.0,0.00399999,120]
[357342597,1744008707883,-500.0,0.00399999,120]
[357342598,1744008707893,-565.2,0.00399999,120]
[357342599,1744008707903,-565.2,0.00399999,120]
[357342600,1744008707912,-500.0,0.00399999,120]
[357342601,1744008707922,-500.0,0.00399999,120]
[357342602,1744008707932,-500.0,0.00399999,120]
[357342603,1744008707941,-500.0,0.00399999,120]
[357342604,1744008707951,-790.21,0.00399999,120]
[357342605,1744008707961,-790.21,0.00399999,120]
[357342606,1744008707971,-254.87,0.00399999,7]
[357342607,1744008707980,-254.87,0.00399999,7]
[357342608,1744008707990,-254.87,0.00399999,7]
[357342609,1744008707999,-254.87,0.00399999,7]
[357342610,1744008708008,-254.87,0.00399999,7]
[357342611,1744008708021,-255.00937863,0.00399999,7]
[357342612,1744008708030,-81430.25,0.00399999,7]
[357342613,1744008708040,-81430.25,0.00399999,7]
[357342614,1744008708049,-81430.25,0.00399999,7]
[357342615,1744008708059,-81430.25,0.00399999,7]
[357342616,1744008708068,-81430.25,0.00399999,7]
[357342617,1744008708081,-81430.25361782,0.00399999,7]
[357342618,1744008708091,-640.25,0.00399999,120]
[357342619,1744008708101,-640.25,0.00399999,120]
[357342620,1744008708111,-619.94,0.00399999,100]
[357342621,1744008708122,-227.25465463,0.00399999,120]
[357342622,1744008708131,-500.0,0.00399999,120]
[357342623,1744008708140,-500.0,0.00399999,120]
[357342624,1744008708150,-1000.85,0.00399999,120]
[357342625,1744008708160,-1000.85,0.00399999,120]
[357342626,1744008708170,-2670.11,0.00399999,120]
[357342627,1744008708181,-2670.11,0.00399999,120]
[357342628,1744008708190,-2670.11,0.00399999,120]
[357342629,1744008708200,-2670.11,0.00399999,120]
[357342630,1744008708209,-2670.11,0.00399999,120]
[357342631,1744008708219,-2670.15874316,0.00399999,120]
[357342632,1744008708228,-500.0,0.00399999,120]
[357342633,1744008708238,-500.0,0.00399999,120]
[357342634,1744008708247,-559.79,0.00399999,120]
[357342635,1744008708257,-559.79,0.00399999,120]
[357342636,1744008708270,-559.79,0.00399999,120]
[357342637,1744008708281,-559.79,0.00399999,120]
[357342638,1744008708290,-559.83030404,0.00399999,120]
[357342639,1744008708300,-521.62,0.00399999,120]
[357342640,1744008708310,-521.62,0.00399999,120]
[357342641,1744008708319,-521.62,0.00399999,120]
[357342642,1744008708329,-521.62,0.00399999,120]
[357342643,1744008708338,-521.74538197,0.00399999,120]
[357342644,1744008708348,-592.49,0.00399999,120]
[357342645,1744008708357,-592.49,0.00399999,120]
[357342646,1744008708367,-567.96,0.00399999,120]
[357342647,1744008708377,-567.96,0.00399999,120]
[357342648,1744008708386,-500.0,0.00399999,120]
[357342649,1744008708396,-270.45853596,0.00399999,120]
[357342650,1744008708406,-549.44,0.00399999,120]
[357342651,1744008708416,-549.44,0.00399999,120]
[357342652,1744008708425,-549.44,0.00399999,120]
[357342653,1744008708435,-618.29,0.00399999,120]
[357342654,1744008708444,-549.44,0.00399999,120]
[357342655,1744008708454,-618.29,0.00399999,120]
[357342656,1744008708463,-549.49125747,0.00399999,120]
[357342657,1744008708473,-618.29,0.00399999,120]
[357342658,1744008708483,-618.29,0.00399999,120]
[357342659,1744008708492,-618.32,0.00399999,120]
[357342660,1744008708503,-575.23,0.00399999,120]
[357342661,1744008708516,-575.23,0.00399999,120]
[357342662,1744008708526,-562.96,0.00399999,120]
[357342663,1744008708535,-562.96,0.00399999,120]
[357342664,1744008708545,-562.96,0.00399999,120]
[357342665,1744008708554,-562.96,0.00399999,120]
[357342666,1744008708564,-563.16,0.00399999,120]
[357342667,1744008708573,-6068.57,0.00399999,120]
[357342668,1744008708583,-6068.57,0.00399999,120]
[357342669,1744008708592,-500.0,0.00399999,120]
[357342670,1744008708601,-186.46968615,0.00399999,120]
[357342671,1744008708610,-505.89,0.00399999,120]
[357342672,1744008708619,-505.89,0.00399999,120]
[357342673,1744008708629,-505.89,0.00399999,120]
[357342674,1744008708638,-505.89,0.00399999,120]
[357342675,1744008708647,-505.92,0.00399999,120]
[357342676,1744008708656,-715.44,0.00399999,120]
[357342677,1744008708666,-715.44,0.00399999,120]
[357342678,1744008708677,-715.44,0.00399999,120]
[357342679,1744008708686,-715.44,0.00399999,120]
[357342680,1744008708696,-715.50093404,0.00399999,120]
[357342681,1744008708705,-500.0,0.00399999,120]
[357342682,1744008708715,-500.0,0.00399999,120]
[357342683,1744008708724,-560.63179398,0.00399999,120]
[357342684,1744008708733,-500.0,0.00399999,120]
[357342685,1744008708743,-500.0,0.00399999,120]
[357342686,1744008708752,-561.52,0.00399999,120]
[357342687,1744008708766,-236.98,0.00399999,120]
[357342688,1744008708776,-659.21,0.00399999,120]
[357342689,1744008708785,-659.21,0.00399999,120]
[357342690,1744008708795,-293.91436061,0.00399999,120]
[357342691,1744008708804,-515.25,0.00399999,120]
[357342692,1744008708814,-515.25,0.00399999,120]
[357342693,1744008708824,-515.25,0.00399999,120]
[357342694,1744008708833,-515.25,0.00399999,120]
[357342695,1744008708843,-500.0,0.00399999,120]
[357342696,1744008708853,-515.38,0.00399999,120]
[357342697,1744008708863,-500.0,0.00399999,120]
[357342698,1744008708872,-500.0,0.00399999,120]
[357342699,1744008708882,-500.0,0.00399999,120]
[357342700,1744008708893,-1000.0,0.00399999,120]
[357342701,1744008708903,-1000.0,0.00399999,120]
[357342702,1744008708913,-537.59,0.00399999,120]
[357342703,1744008708923,-537.59,0.00399999,120]
[357342704,1744008708933,-1000.0,0.00399999,120]
[357342705,1744008708943,-20000.0,0.004,120]
[357342706,1744008708954,-500000.0,0.004,120]
[357342707,1744008708964,-150.0,0.004,120]
[357342708,1744008708973,-300.0,0.004,120]
[357342709,1744008708983,-655.65265976,0.00400384,120]
[357342710,1744008708993,-504.0,0.0040063,2]
[357342711,1744008709002,-159.992,0.00401918,120]
[357342712,1744008709012,-655.65265976,0.00401918,120]
[357342713,1744008709026,-500.0,0.00402867,120]
[357342714,1744008709036,-500.0,0.00405391,120]
[357342715,1744008709048,-151.0,0.00408959,120]
[357342716,1744008709058,-255.31963244,0.00409685,120]
[357342717,1744008709068,-1410.07264593,0.00409694,120]
[357342718,1744008709079,-180.47150424,0.00410959,14]
[357342719,1744008709091,-500.0,0.00416335,120]
[357342720,1744008709104,-500.0,0.00417245,120]
[357342721,1744008709115,-151.0,0.00419753,120]
[357342722,1744008709126,-20000.0,0.0042,120]
[357342723,1744008709138,-200.0,0.0042,120]
[357342724,1744008709148,-500.0,0.00423107,120]
[357342725,1744008709159,-4773.0,0.004272,120]
[357342726,1744008709170,-20000.0,0.0044,120]
[357342727,1744008709181,-200.0,0.0044,120]
[357342728,1744008709191,-153.0,0.00442217,120]
[357342729,1744008709201,-151.0,0.00446521,120]
[357342730,1744008709212,-595.18,0.00451848,120]
[357342731,1744008709223,-500.0,0.00452171,120]
[357342732,1744008709233,-200.0,0.0046,120]
[357342733,1744008709243,-1824.04,0.0046,120]
[357342734,1744008709254,-151.0,0.00473288,120]
[357342735,1744008709269,-152.0,0.00476345,3]
[357342736,1744008709280,-1000.0,0.004789,120]
[357342737,1744008709291,-20000.0,0.0048,120]
[357342738,1744008709301,-200.0,0.0048,120]
[357342739,1744008709311,-500.0,0.00487878,120]
[357342740,1744008709322,-4773.0,0.004904,120]
[357342741,1744008709332,-152.0,0.00494822,4]
[357342742,1744008709343,-500.0,0.00495695,120]
[357342743,1744008709353,-500.0,0.00495695,120]
[357342744,1744008709363,-418.32110471,0.00495695,120]
[357342745,1744008709374,-555.3289891,0.00495695,120]
[357342746,1744008709384,-790.21,0.00495695,120]
[357342747,1744008709394,-1000.85,0.00495695,120]
[357342748,1744008709404,-567.96,0.00495695,120]
[357342749,1744008709414,-575.23,0.00495695,120]
[357342750,1744008709424,-500.0,0.00495695,120]
[357342751,1744008709434,-942.74445781,0.00495695,120]
[357342752,1744008709444,-537.59,0.00495695,120]
[357342753,1744008709454,-525.84,0.00498589,120]
[357342754,1744008709464,-307.31483272,0.00498589,120]
[357342755,1744008709475,-500.0,0.00498589,120]
[357342756,1744008709485,-500.0,0.00498589,120]
[357342757,1744008709495,-306.20290491,0.00498589,120]
[357342758,1744008709505,-573.52,0.00498589,120]
[357342759,1744008709517,-500.0,0.00498589,120]
[357342760,1744008709527,-565.2,0.00498589,120]
[357342761,1744008709537,-640.25,0.00498589,120]
[357342762,1744008709547,-500.0,0.00498589,120]
[357342763,1744008709556,-500.0,0.00498589,120]
[357342764,1744008709566,-592.49,0.00498589,120]
[357342765,1744008709575,-6068.57,0.00498589,120]
[357342766,1744008709584,-500.0,0.00498589,120]
[357342767,1744008709594,-659.21,0.00498589,120]
[357342768,1744008709603,-500.0,0.00498589,120]
[357342769,1744008709613,-255.31963244,0.00499253,120]
[357342770,1744008709622,-302.0,0.00499945,120]
[357342771,1744008709632,-527.1,0.00499999,120]
[357342772,1744008709642,-331.68321414,0.00499999,120]
[357342773,1744008709651,-573.52,0.00499999,120]
[357342774,1744008709661,-573.52,0.00499999,120]
[357342775,1744008709670,-573.52,0.00499999,120]
[357342776,1744008709680,-573.52,0.00499999,120]
[357342777,1744008709689,-573.52,0.00499999,120]
[357342778,1744008709699,-573.54329999,0.00499999,120]
[357342779,1744008709709,-622.99868876,0.00499999,120]
[357342780,1744008709719,-500.0,0.00499999,120]
[357342781,1744008709729,-500.0,0.00499999,120]
[357342782,1744008709738,-186.27370766,0.00499999,120]
[357342783,1744008709748,-180.72984816,0.00499999,120]
[357342784,1744008709758,-565.2,0.00499999,120]
[357342785,1744008709770,-565.2,0.00499999,120]
[357342786,1744008709780,-565.2,0.00499999,120]
[357342787,1744008709789,-565.2,0.00499999,120]
[357342788,1744008709799,-565.2,0.00499999,120]
[357342789,1744008709809,-565.39767861,0.00499999,120]
[357342790,1744008709819,-790.21,0.00499999,120]
[357342791,1744008709829,-790.21,0.00499999,120]
[357342792,1744008709840,-790.21,0.00499999,120]
[357342793,1744008709850,-790.21,0.00499999,120]
[357342794,1744008709859,-790.27,0.00499999,120]
[357342795,1744008709868,-640.25,0.00499999,120]
[357342796,1744008709878,-640.25,0.00499999,120]
[357342797,1744008709888,-640.25,0.00499999,120]
[357342798,1744008709897,-640.25,0.00499999,120]
[357342799,1744008709907,-640.25,0.00499999,120]
[357342800,1744008709917,-640.30723768,0.00499999,120]
[357342801,1744008709926,-500.0,0.00499999,120]
[357342802,1744008709936,-500.0,0.00499999,120]
[357342803,1744008709946,-500.0,0.00499999,120]
[357342804,1744008709956,-330.81,0.00499999,120]
[357342805,1744008709966,-1000.85,0.00499999,120]
[357342806,1744008709976,-1000.85,0.00499999,120]
[357342807,1744008709986,-1000.85,0.00499999,120]
[357342808,1744008709995,-1000.85,0.00499999,120]
[357342809,1744008710005,-1000.94824252,0.00499999,120]
[357342810,1744008710019,-500.0,0.00499999,120]
[357342811,1744008710029,-500.0,0.00499999,120]
[357342812,1744008710039,-617.11,0.00499999,120]
[357342813,1744008710049,-592.49,0.00499999,120]
[357342814,1744008710058,-592.49,0.00499999,120]
[357342815,1744008710068,-592.49,0.00499999,120]
[357342816,1744008710081,-592.49,0.00499999,120]
[357342817,1744008710091,-592.49,0.00499999,120]